bitfinex/quotes_ETHUSD_20230404
["timestamp","ask_amount","ask_price","bid_price","bid_amount"]
[1680574937691,15.93733994,1810.0,1809.6,0.34798592]
[1680574938109,15.49535994,1810.0,1809.6,0.34798592]
[1680574940289,15.27436994,1810.0,1809.6,0.34798592]
[1680574940534,15.49535994,1810.0,1809.6,0.34798592]
[1680574944842,0.66322,1809.3,1809.2,0.1]
[1680574945923,0.22107,1809.3,1809.2,0.1]
[1680574947276,0.66322,1809.3,1809.2,0.1]
[1680574951833,0.66322,1809.3,1809.2,0.57083721]
[1680574954942,0.66322,1809.3,1809.2,0.31451428]
[1680574955845,0.66322,1809.3,1809.1,0.1]
[1680574956809,0.66322,1809.3,1809.2,0.45967128]
[1680574957640,0.66322,1809.3,1809.1,0.1]
[1680574957835,0.066322,1809.2,1809.1,0.1]
[1680574958123,0.287412,1809.2,1809.1,0.1]
[1680574958567,0.729592,1809.2,1809.1,0.1]
[1680574960747,0.287412,1809.2,1809.1,0.1]
[1680574961353,0.22109,1809.2,1809.1,0.1]
[1680574961580,15.7181,1809.4,1809.1,0.1]
[1680574961873,0.22108,1809.3,1809.1,0.1]
[1680574962019,15.93917,1809.4,1809.1,0.1]
[1680574962723,15.93917,1809.4,1809.2,0.42618301]
[1680574963249,16.3813,1809.4,1809.2,0.42618301]
[1680574963618,16.3813,1809.4,1809.1,0.1]
[1680574976108,15.93917,1809.4,1809.1,0.1]
[1680574976410,15.93652722,1809.4,1809.1,0.1]
[1680574977615,0.22306,1809.4,1809.1,2.86602218]
[1680574977823,0.92931994,1809.6,1809.2,0.28660222]
[1680574978113,0.92931994,1809.6,1809.1,2.86602218]
[1680574978325,0.24431994,1809.6,1809.1,2.86602218]
[1680574978468,0.24431994,1809.6,1809.1,7.83752218]
[1680574978691,0.24431994,1809.6,1809.2,0.38249514]
[1680574979144,0.24431994,1809.6,1809.3,2.76602218]
[1680574979448,0.002,1809.7,1809.3,3.68209218]
[1680574979645,16.4055,1809.9,1809.3,3.67609218]
[1680574979797,16.4075,1809.9,1809.4,0.36760922]
[1680574980002,16.4075,1809.9,1809.4,3.1336314]
[1680574980326,16.4075,1809.9,1809.4,0.37360922]
[1680574980510,17.53851,1809.9,1809.3,0.006]
[1680574980710,23.34751,1809.9,1809.3,2.76602218]
[1680574980932,23.34751,1809.9,1809.3,2.77202218]
[1680574982131,16.1865,1809.9,1809.4,2.76602218]
[1680574982432,16.40751,1809.9,1809.4,2.77202218]
[1680574982632,16.1865,1809.9,1809.4,3.30268457]
[1680574982792,16.4075,1809.9,1809.4,3.30268457]
[1680574983223,16.1865,1809.9,1809.4,3.52374457]
[1680574983907,16.40751,1809.9,1809.4,3.52374457]
[1680574984308,16.40751,1809.9,1809.4,3.30268457]
[1680574986799,22.21651,1809.9,1809.4,0.006]
[1680574987001,1.216,1809.7,1809.3,0.006]
[1680574987206,1.88013,1809.6,1809.2,0.38849514]
[1680574987548,19.11043,1809.6,1809.2,0.38849514]
[1680574987695,19.13569994,1809.6,1809.2,0.38249514]
[1680574987896,12.10969994,1809.6,1809.2,3.14851732]
[1680574988131,16.77719994,1809.6,1809.2,3.15451732]
[1680574988435,16.33510994,1809.6,1809.2,3.15451732]
[1680574989345,0.002,1809.6,1809.3,2.76602218]
[1680574989509,0.22104,1809.6,1809.3,2.76602218]
[1680574991622,0.66312,1809.6,1809.3,2.76602218]
[1680574993820,0.66312,1809.6,1809.4,0.37015523]
[1680574994751,0.66312,1809.6,1809.3,2.77202218]
[1680574994926,0.66312,1809.6,1809.3,2.76602218]
[1680574996680,15.92876994,1809.8,1809.3,3.13626957]
[1680574996976,16.59181994,1809.8,1809.3,3.13626957]
[1680574997272,16.59181994,1809.8,1809.3,4.00472125]
[1680574997632,16.14978994,1809.8,1809.3,4.00472125]
[1680575000180,16.14619253,1809.8,1809.3,4.00472125]
[1680575001778,16.14619253,1809.8,1809.4,0.40047213]
[1680575002074,16.14619253,1809.8,1809.4,3.17249431]
[1680575004285,21.95519253,1809.8,1809.4,0.006]
[1680575004482,7.026,1809.7,1809.3,0.006]
[1680575004655,0.66313,1809.6,1809.2,0.006]
[1680575004977,0.22104,1809.6,1809.2,0.006]
[1680575005747,0.22104,1809.6,1809.1,3.74047386]
[1680575005990,0.22104,1809.6,1809.1,4.75332974]
[1680575008844,0.68638994,1809.6,1809.2,0.34587678]
[1680575009173,0.68638994,1809.6,1809.2,0.35187678]
[1680575009845,0.24430994,1809.6,1809.2,0.35187678]
[1680575010877,0.24430994,1809.6,1809.3,2.76602218]
[1680575011181,0.24430994,1809.6,1809.3,2.77202218]
[1680575012054,0.68638994,1809.6,1809.3,2.77202218]
[1680575012460,2.78755994,1809.6,1809.3,0.006]
[1680575012674,5.809,1809.5,1809.2,0.34587678]
[1680575012906,6.25311,1809.5,1809.2,0.34587678]
[1680575013111,0.22306,1809.5,1809.2,0.34587678]
[1680575013307,0.22106,1809.5,1809.2,0.34587678]
[1680575013891,0.22106,1809.5,1809.1,0.97445168]
[1680575014951,5.809,1809.5,1809.1,0.97445168]
[1680575015156,6.03205,1809.5,1809.1,0.106]
[1680575015351,6.47416,1809.5,1809.1,0.106]
[1680575015755,18.17406,1809.5,1809.1,0.106]
[1680575016363,11.92295,1809.5,1809.1,0.106]
[1680575016787,0.22305,1809.5,1809.1,0.97445168]
[1680575017096,0.46535994,1809.6,1809.1,0.97445168]
[1680575017097,0.68640994,1809.6,1809.1,0.97445168]
[1680575017396,0.06864099,1809.5,1809.1,0.97445168]
[1680575018192,0.24431994,1809.6,1809.1,0.97445168]
[1680575023879,0.24431994,1809.6,1809.2,0.34378516]
[1680575024886,0.24431994,1809.6,1809.1,0.97445168]
[1680575025294,0.68639994,1809.6,1809.1,0.97445168]
[1680575025692,5.809,1809.5,1809.1,0.97445168]
[1680575025891,6.03206,1809.5,1809.1,0.97445168]
[1680575026605,6.47417,1809.5,1809.1,0.97445168]
[1680575027905,6.03206,1809.5,1809.1,0.97445168]
[1680575028110,0.22306,1809.5,1809.1,0.97445168]
[1680575028297,0.22106,1809.5,1809.1,0.97445168]
[1680575028496,6.03006,1809.5,1809.1,0.97445168]
[1680575028802,6.03206,1809.5,1809.1,0.97445168]
[1680575029598,0.22306,1809.5,1809.1,0.97445168]
[1680575029794,0.22106,1809.5,1809.1,0.97445168]
[1680575030202,6.49740994,1809.6,1809.1,2.13343661]
[1680575030779,0.24631994,1809.6,1809.2,0.86845168]
[1680575030994,0.24431994,1809.6,1809.2,0.87445168]
[1680575033803,0.68639994,1809.6,1809.2,0.87445168]
[1680575038713,0.68639994,1809.6,1809.3,0.40044211]
[1680575041014,6.49539994,1809.6,1809.3,0.40044211]
[1680575041234,6.49739994,1809.6,1809.3,0.40044211]
[1680575044109,0.66513,1809.6,1809.3,0.40044211]
[1680575044325,0.23004,1809.7,1809.3,0.397568]
[1680575044524,0.009,1809.8,1809.4,3.63447386]
[1680575044736,0.007,1809.9,1809.4,10.010495]
[1680575044972,0.22801,1809.9,1809.4,11.1829971]
[1680575045638,0.22101,1809.9,1809.5,0.86845168]
[1680575046640,0.22801,1809.9,1809.5,0.86845168]
[1680575046812,0.22801,1809.9,1809.4,10.02401217]
[1680575050310,0.22801,1809.9,1809.4,10.24507217]
[1680575050714,0.007,1809.9,1809.4,10.24507217]
[1680575050915,0.007,1809.9,1809.5,1.02450722]
[1680575051156,0.009,1810.0,1809.6,2.76602218]
[1680575051361,0.22797,1810.2,1809.6,2.98706218]
[1680575051512,0.007,1810.2,1809.7,1.624]
[1680575051843,0.007,1810.2,1809.8,2.92842218]
[1680575052812,0.007,1810.2,1809.9,0.36023278]
[1680575053255,0.22797,1810.2,1809.9,0.36023278]
[1680575053417,0.007,1810.2,1809.9,0.36023278]
[1680575053759,0.007,1810.2,1809.9,3.09488768]
[1680575053964,0.22796,1810.3,1809.9,3.09488768]
[1680575057066,0.007,1810.3,1810.0,2.76602218]
[1680575057371,0.007,1810.3,1810.1,0.27660222]
[1680575059463,0.22794,1810.5,1810.1,0.27660222]
[1680575059664,0.22094,1810.4,1810.1,0.27660222]
[1680575059866,0.007,1810.5,1810.1,3.0426244]
[1680575060173,0.007,1810.5,1810.2,0.971]
[1680575060174,0.22793,1810.5,1810.2,0.971]
[1680575064878,0.22093,1810.5,1810.2,0.971]
[1680575068780,0.22093,1810.5,1810.3,0.35363072]
[1680575069381,16.00914005,1810.6,1810.3,0.35363072]
[1680575069580,16.23007005,1810.6,1810.3,0.35363072]
[1680575069744,15.78823005,1810.6,1810.3,0.35363072]
[1680575070082,16.23007005,1810.6,1810.3,0.35363072]
[1680575077894,22.03907005,1810.6,1810.3,0.35363072]
[1680575078867,22.03907005,1810.6,1810.1,0.006]
[1680575079068,23.26007005,1810.6,1810.0,4.7565]
[1680575079270,23.26007005,1810.6,1810.0,7.52252218]
[1680575079489,23.26007005,1810.6,1810.0,7.52452218]
[1680575082583,23.28333999,1810.6,1810.0,7.52452218]
[1680575083758,23.28333999,1810.6,1810.1,0.35473026]
[1680575083958,23.28333999,1810.6,1810.1,0.35873026]
[1680575084558,22.03907005,1810.6,1810.1,3.12675244]
[1680575088516,22.03907005,1810.6,1810.1,0.36073026]
[1680575088818,22.03907005,1810.6,1810.1,0.35873026]
[1680575089567,22.03907005,1810.6,1810.1,0.36073026]
[1680575089768,22.03907005,1810.6,1810.1,0.35873026]
[1680575090918,22.03907005,1810.6,1810.1,0.36073026]
[1680575091699,22.61962662,1810.6,1810.1,0.36073026]
[1680575092119,23.84062662,1810.6,1810.1,0.35873026]
[1680575095584,0.22094,1810.4,1810.1,0.35873026]
[1680575095785,0.22094,1810.4,1810.1,0.36073026]
[1680575100777,0.66283,1810.4,1810.1,0.36073026]
[1680575101305,0.22094,1810.4,1810.1,0.36073026]
[1680575102317,1.76055731,1810.4,1810.1,0.36073026]
[1680575102508,0.80149657,1810.4,1810.1,0.36073026]
[1680575103228,0.22094,1810.4,1810.1,0.36073026]
[1680575104232,7.05238657,1810.4,1810.1,0.36073026]
[1680575104525,7.05438657,1810.4,1810.1,0.36073026]
[1680575104728,6.61249657,1810.4,1810.1,0.36073026]
[1680575109338,6.03194,1810.4,1810.1,0.36073026]
[1680575109914,6.61249657,1810.4,1810.1,0.36073026]
[1680575110143,6.03194,1810.4,1810.1,0.36073026]
[1680575112511,6.61249657,1810.4,1810.1,0.36073026]
[1680575115323,6.03194,1810.4,1810.1,0.36073026]
[1680575115522,6.61249657,1810.4,1810.1,0.36073026]
[1680575120757,6.39155657,1810.4,1810.1,0.36073026]
[1680575121060,6.61249657,1810.4,1810.1,0.36073026]
[1680575121759,7.05438657,1810.4,1810.1,0.36073026]
[1680575125564,6.61249657,1810.4,1810.1,0.36073026]
[1680575127363,7.05438657,1810.4,1810.1,0.36073026]
[1680575129567,6.47383,1810.4,1810.1,0.36073026]
[1680575129866,6.03194,1810.4,1810.1,0.36073026]
[1680575130936,0.002,1810.4,1810.1,0.36073026]
[1680575131135,7.29749657,1810.5,1810.1,0.36073026]
[1680575131367,0.689,1810.3,1810.1,0.36073026]
[1680575131569,1.1309,1810.4,1810.1,0.35473026]
[1680575131773,0.22096,1810.3,1810.1,0.35473026]
[1680575132071,6.02996,1810.3,1810.1,0.35473026]
[1680575132251,6.03196,1810.3,1810.1,0.36073026]
[1680575136289,5.811,1810.3,1810.1,0.36073026]
[1680575136462,0.002,1810.3,1810.1,0.36073026]
[1680575136663,6.03194,1810.4,1810.1,0.35473026]
[1680575139844,6.03394,1810.4,1810.1,0.35473026]
[1680575140052,6.03835387,1810.4,1810.1,0.35473026]
[1680575140252,6.03194,1810.4,1810.1,0.35473026]
[1680575142621,6.47383,1810.4,1810.1,0.35473026]
[1680575142952,7.93816657,1810.4,1810.1,0.35473026]
[1680575149020,7.35761,1810.4,1810.1,0.35473026]
[1680575149809,7.93816657,1810.4,1810.1,0.35473026]
[1680575150319,0.80349657,1810.4,1810.1,0.35473026]
[1680575150515,21.95685662,1810.6,1810.1,1.22318194]
[1680575150715,0.22093,1810.5,1810.2,0.12231819]
[1680575151771,0.22093,1810.5,1810.3,0.40933003]
[1680575152878,0.22093,1810.5,1810.1,0.87445168]
[1680575153080,0.22093,1810.5,1810.1,1.14089534]
[1680575155115,16.93112005,1810.6,1810.1,1.14089534]
[1680575156082,16.93112005,1810.6,1810.1,1.14489534]
[1680575156284,16.93112005,1810.6,1810.1,1.14689534]
[1680575156821,11.12212005,1810.6,1810.1,1.14689534]
[1680575156997,16.71320005,1810.6,1810.2,0.11468953]
[1680575157199,16.93412005,1810.6,1810.2,0.11468953]
[1680575158898,16.93412005,1810.6,1810.3,0.40933003]
[1680575161296,17.37596005,1810.6,1810.3,0.40933003]
[1680575163693,18.64151662,1810.6,1810.3,0.40933003]
[1680575163895,5.812,1810.4,1810.3,0.40933003]
[1680575164096,6.03494,1810.4,1810.3,0.40933003]
[1680575164817,0.22294,1810.4,1810.1,0.006]
[1680575165164,0.22094,1810.4,1810.1,0.006]
[1680575165828,6.03494,1810.5,1810.1,0.006]
[1680575166844,0.22294,1810.5,1810.1,0.87445168]
[1680575167029,6.03294,1810.5,1810.1,0.87445168]
[1680575167334,6.03494,1810.5,1810.1,0.006]
[1680575167544,0.22294,1810.5,1810.1,0.006]
[1680575167720,0.22094,1810.5,1810.1,0.006]
[1680575169844,22.25600005,1810.6,1810.1,0.006]
[1680575170044,0.22093,1810.5,1810.1,0.006]
[1680575170258,21.57100005,1810.6,1810.1,0.87445168]
[1680575170539,0.22093,1810.5,1810.1,0.87445168]
[1680575170739,0.22093,1810.5,1810.1,0.57844366]
[1680575170940,0.22093,1810.5,1810.1,4.21291752]
[1680575171132,11.44067005,1810.6,1810.1,4.21291752]
[1680575171447,0.22093,1810.5,1810.1,4.21291752]
[1680575171742,0.22093,1810.5,1810.1,0.57844366]
[1680575172423,0.66279,1810.5,1810.1,0.57844366]
[1680575173702,0.66279,1810.5,1810.2,0.43801339]
[1680575174943,0.66279,1810.5,1810.1,0.006]
[1680575175144,6.47479,1810.5,1810.1,0.006]
[1680575175351,6.47679,1810.5,1810.1,0.006]
[1680575175834,17.27269,1810.5,1810.1,0.006]
[1680575176961,16.83083,1810.5,1810.1,0.006]
[1680575177352,11.01883,1810.5,1810.1,0.006]
[1680575177549,16.83083,1810.5,1810.1,0.006]
[1680575178869,11.01883,1810.5,1810.1,0.006]
[1680575180131,0.002,1810.5,1810.1,0.006]
[1680575180330,10.99882005,1810.6,1810.1,0.53164266]
[1680575182466,10.99882005,1810.6,1810.1,0.006]
[1680575182830,10.99882005,1810.6,1810.1,0.87445168]
[1680575183454,10.99882005,1810.6,1810.1,3.64047386]
[1680575184278,11.44066005,1810.6,1810.1,3.64047386]
[1680575185348,11.44066005,1810.6,1810.1,0.87445168]
[1680575188482,11.44066005,1810.6,1810.1,0.87445168]
[1680575188853,11.44066005,1810.6,1810.2,0.4384038]
[1680575189855,11.44066005,1810.6,1810.1,0.87445168]
[1680575190166,11.44066005,1810.6,1810.1,0.006]
[1680575190660,11.44066005,1810.6,1810.1,0.87445168]
[1680575195788,12.02121662,1810.6,1810.1,2.03343661]
[1680575195972,6.20921662,1810.6,1810.1,2.03343661]
[1680575196172,5.812,1810.5,1810.1,2.03343661]
[1680575196392,6.03493,1810.5,1810.1,2.03343661]
[1680575197905,6.03493,1810.5,1810.1,0.87445168]
[1680575198862,6.03493,1810.5,1810.1,2.03343661]
[1680575199507,6.03493,1810.5,1810.2,0.86845168]
[1680575199712,6.03493,1810.5,1810.2,0.004]
[1680575199875,6.03493,1810.5,1810.1,2.03343661]
[1680575201067,6.03493,1810.5,1810.2,0.86845168]
[1680575201305,6.03493,1810.5,1810.2,0.004]
[1680575201483,6.47679,1810.5,1810.1,0.87445168]
[1680575203904,6.47679,1810.5,1810.2,0.43877007]
[1680575204128,6.03493,1810.5,1810.2,0.43877007]
[1680575205034,6.03493,1810.5,1810.1,2.03343661]
[1680575206391,0.22293,1810.5,1810.1,2.03343661]
[1680575206598,0.22093,1810.5,1810.1,2.03343661]
[1680575207524,11.80029662,1810.6,1810.1,2.70408183]
[1680575207681,5.76738662,1810.6,1810.1,2.70408183]
[1680575209011,11.57938662,1810.6,1810.1,2.70408183]
[1680575209235,11.52938662,1810.6,1810.2,0.86845168]
[1680575209405,11.52938662,1810.6,1810.2,0.87245168]
[1680575209706,11.52938662,1810.6,1810.2,0.004]
[1680575209878,11.52938662,1810.6,1810.1,2.70408183]
[1680575210083,11.52938662,1810.6,1810.2,0.27040818]
[1680575210286,11.52938662,1810.6,1810.1,2.70408183]
[1680575210907,11.52938662,1810.6,1810.2,0.86845168]
[1680575211115,11.52938662,1810.6,1810.2,0.87445168]
[1680575216632,11.97122662,1810.6,1810.2,0.87445168]
[1680575218523,11.52938662,1810.6,1810.2,0.87445168]
[1680575218911,11.52938662,1810.6,1810.3,0.438489]
[1680575219232,0.63865662,1810.6,1810.3,0.56978307]
[1680575219439,0.05610005,1810.6,1810.4,3.63447386]
[1680575219597,0.05610005,1810.6,1810.4,3.64047386]
[1680575219934,0.05610005,1810.6,1810.5,0.36404739]
[1680575220319,0.05610005,1810.6,1810.5,0.50714023]
[1680575220511,0.05610005,1810.6,1810.5,0.14309284]
[1680575222833,0.27702005,1810.6,1810.5,0.14309284]
[1680575223234,0.05610005,1810.6,1810.5,0.14309284]
[1680575232661,0.05380212,1810.6,1810.5,0.14309284]
[1680575233859,0.05380212,1810.6,1810.5,0.5356049]
[1680575234221,0.05380212,1810.6,1810.5,0.4356049]
[1680575240480,0.05380212,1810.6,1810.5,0.5536049]
[1680575245668,0.05380212,1810.6,1810.5,0.4356049]
[1680575256876,0.27472212,1810.6,1810.5,0.4356049]
[1680575257081,0.05380212,1810.6,1810.5,0.4356049]
[1680575258309,0.04990953,1810.6,1810.5,0.4356049]
[1680575262499,0.04990953,1810.6,1810.5,0.5466049]
[1680575273897,0.04990953,1810.6,1810.5,4.85614167]
[1680575274128,0.04990953,1810.6,1810.5,8.1531823]
[1680575274321,0.04990953,1810.6,1810.5,8.5910423]
[1680575274924,0.01065832,1810.6,1810.5,8.5910423]
[1680575275805,0.11000001,1810.7,1810.5,8.5910423]
[1680575276011,0.11000001,1810.7,1810.6,9.31467749]
[1680575276206,0.11000001,1810.7,1810.6,10.00567749]
[1680575276629,0.11000001,1810.7,1810.6,15.00047749]
[1680575276807,0.11000001,1810.7,1810.6,15.34536945]
[1680575277007,0.11000001,1810.7,1810.6,14.18720312]
[1680575277427,0.11000001,1810.7,1810.6,13.74536312]
[1680575281011,0.11000001,1810.7,1810.6,13.52444312]
[1680575281436,0.11000001,1810.7,1810.6,13.74536312]
[1680575282143,0.11000001,1810.7,1810.6,13.05636312]
[1680575282308,0.11000001,1810.7,1810.6,14.18720312]
[1680575283003,0.11000001,1810.7,1810.6,13.74536312]
[1680575284154,0.11000001,1810.7,1810.6,12.83544312]
[1680575284444,0.11000001,1810.7,1810.6,12.18773837]
[1680575284610,0.11000001,1810.7,1810.6,11.96681837]
[1680575284810,0.11000001,1810.7,1810.6,12.83544312]
[1680575285436,0.11000001,1810.7,1810.6,13.05636312]
[1680575286060,0.11000001,1810.7,1810.6,12.83544312]
[1680575286218,0.11000001,1810.7,1810.6,9.21031671]
[1680575286424,0.11000001,1810.7,1810.6,8.34169196]
[1680575286753,0.11000001,1810.7,1810.6,5.34169196]
[1680575287544,0.11000001,1810.7,1810.6,8.10771414]
[1680575287856,0.11000001,1810.7,1810.6,9.19725889]
[1680575288146,0.11000001,1810.7,1810.6,10.22015654]
[1680575288711,0.11000001,1810.7,1810.6,9.99923654]
[1680575288910,0.11000001,1810.7,1810.6,10.22015654]
[1680575289154,0.11000001,1810.7,1810.6,9.35153179]
[1680575289346,0.11000001,1810.7,1810.6,10.22015654]
[1680575289919,0.11000001,1810.7,1810.6,9.35153179]
[1680575290944,0.11000001,1810.7,1810.6,10.66199654]
[1680575291258,0.11000001,1810.7,1810.6,13.22015654]
[1680575292140,0.11000001,1810.7,1810.6,13.90915654]
[1680575292336,0.11000001,1810.7,1810.6,16.21321812]
[1680575292544,0.11000001,1810.7,1810.6,16.50507735]
[1680575292545,1e-08,1810.7,1810.6,16.50507735]
[1680575296772,1e-08,1810.7,1810.6,17.66016808]
[1680575297072,1e-08,1810.7,1810.6,16.21014252]
[1680575299667,1e-08,1810.7,1810.6,16.50507735]
[1680575301141,1e-08,1810.7,1810.6,17.65969007]
[1680575302481,1e-08,1810.7,1810.6,15.32598451]
[1680575305289,1e-08,1810.7,1810.6,14.63698451]
[1680575306367,1e-08,1810.7,1810.6,14.93239735]
[1680575306752,1e-08,1810.7,1810.6,16.08645873]
[1680575307284,1e-08,1810.7,1810.6,16.08654347]
[1680575308486,1e-08,1810.7,1810.6,14.63651791]
[1680575312178,1e-08,1810.7,1810.6,15.32551791]
[1680575312494,1e-08,1810.7,1810.6,15.62139735]
[1680575312697,0.11000001,1810.9,1810.7,0.00279501]
[1680575312857,0.11000001,1810.9,1810.8,3.42870218]
[1680575313196,0.11000001,1810.9,1810.8,7.29441344]
[1680575313359,0.11000001,1810.9,1810.8,7.29641344]
[1680575313863,0.11000001,1810.9,1810.8,7.67258722]
[1680575314084,0.11000001,1810.9,1810.8,8.80012858]
[1680575314485,0.11000001,1810.9,1810.8,9.777699]
[1680575315273,0.11000001,1810.9,1810.8,14.456299]
[1680575317907,0.11000001,1810.9,1810.8,14.99526569]
[1680575319078,0.11000001,1810.9,1810.8,14.30626569]
[1680575320315,0.11000001,1810.9,1810.8,13.86447569]
[1680575320480,0.11000001,1810.9,1810.8,14.5100578]
[1680575320670,0.11000001,1810.9,1810.8,13.57666612]
[1680575321613,0.11000001,1810.9,1810.8,14.7309478]
[1680575324181,0.11000001,1810.9,1810.8,13.57666612]
[1680575324387,0.11000001,1810.9,1810.8,15.1727378]
[1680575324917,0.11000001,1810.9,1810.8,14.30626569]
[1680575328697,0.11000001,1810.9,1810.8,14.60200957]
[1680575329290,0.11000001,1810.9,1810.8,20.41400957]
[1680575329884,0.11000001,1810.9,1810.8,20.55040575]
[1680575333714,0.11000001,1810.9,1810.8,14.73840575]
[1680575336232,0.10695859,1810.9,1810.8,14.73840575]
[1680575336796,0.10695859,1810.9,1810.8,13.28838019]
[1680575339525,0.10695859,1810.9,1810.8,12.62570019]
[1680575339725,0.10695859,1810.9,1810.8,14.29263126]
[1680575339936,0.10695859,1810.9,1810.8,12.62570019]
[1680575340097,0.10695859,1810.9,1810.8,12.94420288]
[1680575340296,0.10695859,1810.9,1810.8,12.9442073]
[1680575340533,0.10695859,1810.9,1810.8,8.2656073]
[1680575342219,0.10695859,1810.9,1810.8,8.12921112]
[1680575345240,0.10695859,1810.9,1810.8,5.36318894]
[1680575345635,0.10695859,1810.9,1810.8,2.07474079]
[1680575345847,0.10695859,1810.9,1810.8,2.94097512]
[1680575346034,0.10695859,1810.9,1810.8,1.7833748]
[1680575347626,0.10695859,1810.9,1810.8,4.83876297]
[1680575351260,0.10695859,1810.9,1810.8,5.46772362]
[1680575351466,0.10695859,1810.9,1810.8,8.75817177]
[1680575351783,0.10695859,1810.9,1810.8,7.3121233]
[1680575352153,0.10695859,1810.9,1810.8,8.97918404]
[1680575352352,0.10695859,1810.9,1810.8,8.97916649]
[1680575352663,0.10695859,1810.9,1810.8,7.5330133]
[1680575352845,0.10695859,1810.9,1810.8,8.97910879]
[1680575353043,0.10695859,1810.9,1810.8,7.5330133]
[1680575353575,0.10695859,1810.9,1810.8,6.99404661]
[1680575354742,0.10695859,1810.9,1810.8,7.81122651]
[1680575354956,0.10695859,1810.9,1810.8,6.36508596]
[1680575355943,0.10695859,1810.9,1810.8,7.81123055]
[1680575356364,0.10695859,1810.9,1810.8,7.59034055]
[1680575356556,0.10695859,1810.9,1810.8,7.81123055]
[1680575357886,0.10695859,1810.9,1810.8,7.59034055]
[1680575358050,0.10376995,1810.9,1810.8,7.59034055]
[1680575358258,0.10376995,1810.9,1810.8,7.81123055]
[1680575359496,0.10376995,1810.9,1810.8,7.59034055]
[1680575359698,0.10376995,1810.9,1810.8,7.81123055]
[1680575360294,0.10376995,1810.9,1810.8,7.59034055]
[1680575361220,0.10376995,1810.9,1810.8,7.81123055]
[1680575361569,0.10376995,1810.9,1810.8,9.13644909]
[1680575367881,0.10376995,1810.9,1810.8,8.91555909]
[1680575368106,0.10376995,1810.9,1810.8,9.13644909]
[1680575368707,0.10376995,1810.9,1810.8,8.91555909]
[1680575369102,0.10376995,1810.9,1810.8,9.13644909]
[1680575369317,0.10376995,1810.9,1810.8,8.91555909]
[1680575369814,0.10376995,1810.9,1810.8,9.13644909]
[1680575371011,0.10376995,1810.9,1810.8,8.91555909]
[1680575375233,0.10376995,1810.9,1810.8,7.59034055]
[1680575375556,0.10376995,1810.9,1810.8,8.74744549]
[1680575375889,0.10376995,1810.9,1810.8,7.59034055]
[1680575378725,0.10376995,1810.9,1810.8,8.96841259]
[1680575378942,0.10376995,1810.9,1810.8,7.81123055]
[1680575379457,0.10376995,1810.9,1810.8,9.59184139]
[1680575379658,0.10376995,1810.9,1810.8,9.5920321]
[1680575381046,0.10026488,1810.9,1810.8,9.5920321]
[1680575381258,0.10026488,1810.9,1810.8,9.59209954]
[1680575384963,0.10026488,1810.9,1810.8,8.1456968]
[1680575386660,0.10026488,1810.9,1810.8,9.88618235]
[1680575392283,0.10026488,1810.9,1810.8,11.26318235]
[1680575392580,0.10026488,1810.9,1810.8,11.25713661]
[1680575392780,0.10026488,1810.9,1810.8,9.5226968]
[1680575393087,0.10026488,1810.9,1810.8,11.2570716]
[1680575394397,0.10026488,1810.9,1810.8,17.29909468]
[1680575394884,0.10026488,1810.9,1810.8,16.61009468]
[1680575395397,0.10026488,1810.9,1810.8,15.94741468]
[1680575395608,0.10026488,1810.9,1810.8,16.61009468]
[1680575396310,0.10026488,1810.9,1810.8,18.8736968]
[1680575398962,0.10026488,1810.9,1810.8,18.74335224]
[1680575400603,0.10026488,1810.9,1810.8,20.76938313]
[1680575400803,0.10026488,1810.9,1810.8,21.04596313]
[1680575400972,0.10026488,1810.9,1810.8,21.05196313]
[1680575402117,0.10026488,1810.9,1810.8,21.74096313]
[1680575404078,0.09759261,1810.9,1810.8,19.71093224]
[1680575404284,0.09759261,1810.9,1810.8,19.70893224]
[1680575405108,0.09759261,1810.9,1810.8,21.73496313]
[1680575405280,0.09759261,1810.9,1810.8,19.02093224]
[1680575405648,0.09759261,1810.9,1810.8,21.04696313]
[1680575405924,0.09759261,1810.9,1810.8,20.77038313]
[1680575406108,0.09759261,1810.9,1810.8,18.74435224]
[1680575406319,0.09759261,1810.9,1810.8,9.39035224]
[1680575406623,0.09759261,1810.9,1810.8,8.40903137]
[1680575408191,0.09759261,1810.9,1810.8,4.96724137]
[1680575408391,0.09759261,1810.9,1810.8,5.61175015]
[1680575408720,0.78259261,1810.9,1810.8,3.88064346]
[1680575408922,0.78259261,1810.9,1810.8,3.87864346]
[1680575409088,0.78900648,1810.9,1810.8,0.24582922]
[1680575411631,1.00988648,1810.9,1810.8,0.24582922]
[1680575411814,1.69888648,1810.9,1810.8,0.24582922]
[1680575412011,1.47800648,1810.9,1810.8,0.24582922]
[1680575412216,1.32400648,1810.9,1810.8,0.24582922]
[1680575413226,2.98275097,1810.9,1810.8,0.24582922]
[1680575414328,2.54099097,1810.9,1810.8,0.24582922]
[1680575415549,8.79475097,1810.9,1810.8,0.24582922]
[1680575415847,8.79675097,1810.9,1810.8,0.24582922]
[1680575416152,2.54299097,1810.9,1810.8,0.24582922]
[1680575416319,2.54099097,1810.9,1810.8,0.24582922]
[1680575416645,2.56426091,1810.9,1810.8,0.24582922]
[1680575416821,8.37626091,1810.9,1810.8,0.24582922]
[1680575417028,8.37826091,1810.9,1810.8,0.24582922]
[1680575419616,2.56626091,1810.9,1810.8,0.24582922]
[1680575419842,2.56426091,1810.9,1810.8,0.24582922]
[1680575420348,8.37626091,1810.9,1810.8,0.24582922]
[1680575420557,2.56626091,1810.9,1810.8,0.24582922]
[1680575420851,2.56426091,1810.9,1810.8,0.24582922]
[1680575421052,3.00602091,1810.9,1810.8,0.24582922]
[1680575422257,1.4409,1810.8,1810.5,0.04309284]
[1680575422412,1.215,1810.6,1810.5,0.04309284]
[1680575422615,1.22141387,1810.6,1810.5,0.04309284]
[1680575422811,1.34355526,1810.6,1810.5,0.04309284]
[1680575424116,1.34355526,1810.6,1810.5,0.03975565]
[1680575424321,1.33714139,1810.6,1810.5,0.03975565]
[1680575425015,1.55806139,1810.6,1810.5,0.03975565]
[1680575425430,1.33714139,1810.6,1810.5,0.03975565]
[1680575426932,1.55806139,1810.6,1810.5,0.03975565]
[1680575428234,1.33714139,1810.6,1810.5,0.03975565]
[1680575432241,12.45450139,1810.6,1810.5,0.03975565]
[1680575433429,6.20066139,1810.6,1810.5,0.03975565]
[1680575433846,6.20707526,1810.6,1810.5,0.03975565]
[1680575434947,6.64891526,1810.6,1810.5,0.03975565]
[1680575435328,6.64250139,1810.6,1810.5,0.03975565]
[1680575436961,6.59250139,1810.6,1810.5,0.03975565]
[1680575440083,5.92974139,1810.6,1810.5,0.03975565]
[1680575440269,4.6426,1810.6,1810.5,0.03975565]